Cogmind - Beta 11.1 @@@ ROGUE MODE // 2022.06.09 @ 01:54:38 Player: woegarden Result: Destroyed by as-47116 with Assembled Rifle Performance ------------- Evolutions (1) 500 Regions Visited (3) 600 Robots Destroyed (5) 25 Value Destroyed (111) 111 Prototype IDs (0) 0 Alien Tech Used (0) 0 Bonus (0) 0 TOTAL SCORE: 1236 Bonus ------- None Cogmind --------- Core Integrity 0/400 Matter 224/300 Energy 93/100 System Corruption 1% Temperature Cool (0) Movement Core (100) Ox1 Location -9/Mines Parts ------- > --- POWER (1) -------- (None) > --- PROPULSION (3) --- (None) > --- UTILITY (3) ------ Small Storage Unit > --- WEAPON (2) ------- (None) > --- INVENTORY (8) ---- Light Nuclear Core Medium Storage Unit Assault Rifle Mining Claw Mining Claw Peak State ------------ > --- POWER ------------ Light Ion Engine > --- PROPULSION ------- Aluminum Leg Aluminum Leg > --- UTILITY ---------- Small Storage Unit Medium Storage Unit > --- WEAPON ----------- EM Pulse Gun Assault Rifle > --- INVENTORY -------- Ion Engine Light Nuclear Core Wheel Compact Wheel Flight Unit Flight Unit Flight Unit Assault Rifle [Rating: 8] Favorites ----------- Power Light Ion Engine Engine Light Ion Engine Propulsion Aluminum Leg Leg Aluminum Leg Wheel Compact Wheel Flight Unit Flight Unit Utility Small Storage Unit Storage Small Storage Unit Weapon EM Pulse Gun Energy Gun EM Pulse Gun Ballistic Gun Assault Rifle Slashing Weapon Mining Claw Build | -11 -10 -9 -9 ------- Run | Scr Mat Mat Min Slots Evolved 2 | . . 2 . Power . | . . . . Propulsion 1 | . . 1 . Utility 1 | . . 1 . Weapon . | . . . . Parts Attached 14 | . 1 12 1 Power 4 | . . 4 . Engine 4 | . . 4 . Core . | . . . . Reactor . | . . . . Propulsion 6 | . . 5 1 Treads . | . . . . Leg . | . . . . Wheel 1 | . . . 1 Hover . | . . . . Flight 5 | . . 5 . Utility 2 | . 1 1 . Device . | . . . . Storage 2 | . 1 1 . Processor . | . . . . Hackware . | . . . . Protection . | . . . . Artifact . | . . . . Weapon 2 | . . 2 . Energy Gun . | . . . . Energy Cannon . | . . . . Ballistic Gun . | . . . . Ballistic Cannon . | . . . . Launcher . | . . . . Special Weapon . | . . . . Impact Weapon . | . . . . Slashing Weapon 2 | . . 2 . Piercing Weapon . | . . . . Special Melee Weapon . | . . . . Unidentified Prototypes . | . . . . Parts Lost 8 | . . 2 6 Power 2 | . . 1 1 Propulsion 5 | . . 1 4 Utility . | . . . . Weapon 1 | . . . 1 Highest Loss Streak 8 | . . 2 8 To Critical Strikes . | . . . . Average Slot Usage (%) 75 | . 85 68 44 Engine 12 | . 14 11 8 Leg 16 | . 28 . . Flight 11 | . . 33 19 Storage 12 | . 14 9 11 Energy Gun 8 | . 14 1 . Ballistic Gun 8 | . 14 1 . Slashing Weapon 4 | . . 12 5 Naked Turns . | . . . . Heaviest Build 17 | 12 17 12 10 Greatest Support 20 | 20 20 12 12 Greatest Overweight (x) 1 | . . . 1 Average Overweight (x) . | . . . . Largest Inventory Capacity 10 | . 10 10 8 Average Capacity 8 | . 8 7 8 Most Carried 10 | . 10 10 6 Average Carried 6 | . 6 6 5 Final Capacity 10 | 8 10 8 8 Final Carried 10 | 6 10 6 5 Class Distribution -------------------- 84% | Mutant 15% | Sprinter Dominant Class ---------------- Mutant | -10/Materials Mutant | -9/Materials Sprinter | -9/Mines Resources | -11 -10 -9 -9 ----------- Run | Scr Mat Mat Min Matter Collected 253 | 200 42 . 11 Remotely . | . . . . Salvage Created 167 | . 155 . 12 Parts 11 | . 11 . . Haulers Intercepted . | . . . . Recyclers Shooed . | . . . . Parts Field Recycled . | . . . . Retrieved Matter . | . . . . Parts Self-Destructed . | . . . . Prevented . | . . . . Kills | -11 -10 -9 -9 ------- Run | Scr Mat Mat Min Combat Hostiles Destroyed 6 | . 5 . 1 Melee 1 | . . . 1 Guns 5 | . 5 . . Classes Destroyed 3 | . 2 . 1 Swarmer 3 | . 3 . . Grunt 2 | . 2 . . Assembled 1 | . . . 1 Best Kill Streak 3 | . 3 . 1 Combat Bots Only 3 | . 3 . 1 Max Kills in Single Turn 1 | . 1 . 1 Gunslinging . | . . . . Exploded . | . . . . Melee 1 | . . . 1 Uniques/NPCs Destroyed . | . . . . Combat | -11 -10 -9 -9 -------- Run | Scr Mat Mat Min Damage Taken 1022 | . 208 258 556 Core 436 | . 35 88 313 Absorbed by Shields . | . . . . Core Remaining (%) 93 | 100 86 . . Volleys Fired 15 | . 15 . . Largest 2 | . 2 . . Hottest 60 | . 60 . . Shots Fired 30 | . 30 . . Gun 30 | . 30 . . Cannon . | . . . . Launcher . | . . . . Special . | . . . . Kinetic 15 | . 15 . . Thermal . | . . . . Explosive . | . . . . Electromagnetic 15 | . 15 . . Robot Hit Streak 5 | . 5 . . Robot Miss Streak 2 | . 2 . . Penetration Max . | . . . . Secondary Targets . | . . . . Shots Hit Robots 24 | . 18 5 1 Core Hits 10 | . 8 . 2 Critical Kills . | . . . . Critical Parts Destroyed . | . . . . Critical Strikes 2 | . 2 . . Corrupt 2 | . 2 . . Melee Attacks 8 | . . 6 2 Impact . | . . . . Slashing 8 | . . 6 2 Piercing . | . . . . Sneak Attacks 1 | . . 1 . Combat Hostiles . | . . . . Follow-up Attacks . | . . . . Damage Inflicted 407 | . 223 135 49 Guns 223 | . 223 . . Cannons . | . . . . Explosions . | . . . . Melee 170 | . . 135 35 Ramming 14 | . . . 14 Kinetic 120 | . 120 . . Thermal . | . . . . Explosive . | . . . . Electromagnetic 103 | . 103 . . Impact . | . . . . Slashing 170 | . . 135 35 Piercing . | . . . . Highest Corruption 1 | . . . 1 Average Corruption 1 | . . . 1 Corruption Purged . | . . . . Corruption Blocked . | . . . . Effects 1 | . . . 1 Energy Discharges 1 | . . . 1 Overload Shots . | . . . . Overflow Damage 6 | . . 6 . Projectiles . | . . . . Explosions . | . . . . Melee 6 | . . 6 . Knockbacks . | . . . . Impact . | . . . . Kinetic . | . . . . Secondary . | . . . . Self-Inflicted Damage 7 | . . . 7 Shots . | . . . . Rammed 4 | . . . 4 Targets Rammed 4 | . . . 4 Kicked . | . . . . Crushed . | . . . . Highest Temperature 57 | . 57 17 . Average Temperature 31 | . 33 12 . Received Heat Transfer 301 | . 72 129 100 Siege Activations . | . . . . Robots Corrupted . | . . . . Combat Hostiles . | . . . . Parts Fried . | . . . . Impact Corruptions . | . . . . Robots Melted . | . . . . Combat Hostiles . | . . . . Parts Melted . | . . . . Heat Transferred . | . . . . Parts Sabotaged . | . . . . Parts Stolen . | . . . . Parts Stripped . | . . . . Power Chain Reactions . | . . . . Missiles Intercepted . | . . . . Alert | -11 -10 -9 -9 ------- Run | Scr Mat Mat Min Peak Influence 159 | . 153 159 57 Initial 64 | . . 64 57 Average 94 | . 103 101 35 Maximum Alert Level . | . . . . Low Security (%) 100 | . 100 100 100 Level 1 . | . . . . Level 2 . | . . . . Level 3 . | . . . . Level 4 . | . . . . Level 5 . | . . . . High Security . | . . . . Max Security . | . . . . Squads Dispatched 1 | . . 1 . Investigation . | . . . . Extermination . | . . . . Reinforcement 1 | . . 1 . Assault . | . . . . Garrison . | . . . . Intercept . | . . . . Searches Triggered . | . . . . Construction Impeded . | . . . . Haulers Reinforced . | . . . . Active Scanning Responses . | . . . . Cargo Convoy Interrupts . | . . . . Stealth | -11 -10 -9 -9 --------- Run | Scr Mat Mat Min Distress Signals 2 | . 1 1 . Communications Jammed . | . . . . Distress Signals . | . . . . Times Spotted 41 | . 6 13 22 Peak Tracking Total 19 | . 7 11 19 Tactical Retreats 3 | . 1 1 1 Traps | -11 -10 -9 -9 ------- Run | Scr Mat Mat Min Traps Triggered . | . . . . Indirectly . | . . . . Trap Hack Attempts . | . . . . Triggered . | . . . . Disarmed . | . . . . Reprogrammed . | . . . . Reused . | . . . . Traps Extracted . | . . . . Installed . | . . . . Triggered . | . . . . Machines | -11 -10 -9 -9 ---------- Run | Scr Mat Mat Min Machines Disabled . | . . . . Max in Single Turn . | . . . . Machines Sabotaged . | . . . . Garrisons Compromised . | . . . . Overloaded Fab Kills . | . . . . Hacking | -11 -10 -9 -9 --------- Run | Scr Mat Mat Min Machines Accessed . | . . . . Terminals . | . . . . Fabricators . | . . . . Repair Stations . | . . . . Recycling Units . | . . . . Scanalyzers . | . . . . Garrison Access . | . . . . Total Hacks . | . . . . Successful . | . . . . Failed . | . . . . Catastrophic . | . . . . Database Lockouts . | . . . . Manual . | . . . . Terminals . | . . . . Fabricators . | . . . . Repair Stations . | . . . . Recycling Units . | . . . . Scanalyzers . | . . . . Garrison Access . | . . . . Terminal Hacks . | . . . . Fabricator Hacks . | . . . . Repair Station Hacks . | . . . . Recycling Unit Hacks . | . . . . Scanalyzer . | . . . . Garrison Access Hacks . | . . . . Unauthorized Hacks . | . . . . Terminals . | . . . . Fabricators . | . . . . Repair Stations . | . . . . Recycling Units . | . . . . Scanalyzers . | . . . . Garrison Access . | . . . . Data Cores Recovered . | . . . . Used . | . . . . Hacking Detections . | . . . . Full Trace Events . | . . . . Feedback Events . | . . . . Feedback Blocked . | . . . . Robot Schematics Acquired . | . . . . Robots Built . | . . . . Authchips . | . . . . Time . | . . . . Total Robot Build Rating . | . . . . Part Schematics Acquired . | . . . . Parts Built . | . . . . Authchips . | . . . . Time . | . . . . Total Part Build Rating . | . . . . Parts Repaired . | . . . . Time . | . . . . Parts Recycled . | . . . . Recycled Matter . | . . . . Retrieved Matter . | . . . . Retrieved Components . | . . . . Parts Scanalyzed . | . . . . Part Schematics Acquired . | . . . . Parts Damaged . | . . . . Bothacking | -11 -10 -9 -9 ------------ Run | Scr Mat Mat Min Used RIF Installer . | . . . . Robots Hacked . | . . . . Non-combat . | . . . . Combat . | . . . . Robot Hacks Applied . | . . . . Relay Couplers Released . | . . . . Fabnet Peak Effective % . | . . . . Robots Rewired . | . . . . Allies Hacked . | . . . . Hacks Repelled . | . . . . Allies | -11 -10 -9 -9 -------- Run | Scr Mat Mat Min Total Allies . | . . . . Largest Group . | . . . . Highest-Rated Group . | . . . . Highest-Rated Ally . | . . . . Total Orders . | . . . . Ally Attacks . | . . . . Total Damage . | . . . . Kills . | . . . . Allies Corrupted . | . . . . Allies Melted . | . . . . Intel | -11 -10 -9 -9 ------- Run | Scr Mat Mat Min Robot Analysis Total . | . . . . Derelict Logs Recovered . | . . . . Drone Launches . | . . . . Drone Recoveries . | . . . . Exploration | -11 -10 -9 -9 ------------- Run | Scr Mat Mat Min Turns Passed 333 | . 204 89 40 Spaces Moved 342 | 1 118 154 69 Core 10 | . . . 10 Treads . | . . . . Legs 119 | 1 118 . . Wheels . | . . . . Hover . | . . . . Flight 213 | . . 154 59 Fastest Speed 32 | 120 120 32 32 Average Speed 65 | 120 120 32 42 Slowest Speed 120 | 120 120 34 100 Overloaded Moves . | . . . . Propulsion Burnouts . | . . . . Robots Hopped 3 | . . 2 1 Cave-ins Triggered . | . . . . Exploration Rate (%) 17 | 2 29 29 11 Regions Visited 3 Branch Regions 1 Pre-discovered Areas . | . . . . Known Exits Taken . | . . . . Unknown Exits Taken 3 | 1 1 1 . Scrap Searched . | . . . . Spaces Dug . | . . . . Terrain Destroyed . | . . . . Melee . | . . . . Projectile . | . . . . AOE . | . . . . Terrain Rammed . | . . . . Walls Destroyed . | . . . . Machines Disabled . | . . . . Actions | -11 -10 -9 -9 --------- Run | Scr Mat Mat Min Total 406 | . 152 179 75 Wait 7 | . 6 1 . Move 333 | . 117 149 67 Hop 3 | . . 2 1 Pick Up 8 | . 8 . . Fast Attach 2 | . 1 1 . Attach 8 | . . 7 1 Detach 4 | . . 4 . Swap 4 | . . 4 . Drop 10 | . 5 5 . Fire 15 | . 15 . . Melee 8 | . . 6 2 Ram 4 | . . . 4 Kick . | . . . . Crush . | . . . . Escape Stasis . | . . . . Rewire . | . . . . Trap . | . . . . Miscellaneous . | . . . . Route ------- -11/Scrapyard -10/Materials -9/Materials -9/Mines History --------- Turn | Location | Event 1 | -11/Scrapyard | Discovered new exit (range 0) 1 | -11/Scrapyard | Entered Materials 174 | -10/Materials | Discovered new exit (range 10) 205 | -10/Materials | Entered another Materials area 205 | -9/Materials | Evolved 2 slots: Propulsion x1, Utility x1 283 | -9/Materials | Discovered new exit (range 13) 294 | -9/Materials | Entered Mines 296 | -9/Mines | Assembled infested the area 325 | -9/Mines | Core integrity fell below 50% 329 | -9/Mines | Core integrity fell below 20% 334 | -9/Mines | Destroyed by as-47116 with Assembled Rifle Last Messages --------------- 00295_ A derelict wanders into view. 00296_ ALERT: Infestation in the mines, dispatching Demolisher response squad. 00311_ as-36707 destroyed. 00315_ Flight Unit destroyed. 00315_ System corrupted by crushing effect (+1). 00315_ Knocked back. 00316_ Mining Claw destroyed. 00319_ VTOL Module destroyed. 00320_ Lgt. Ion Engine destroyed. 00321_ Slammed into as-52670. 00321_ Com. Wheel destroyed. 00322_ Slammed into as-38878. 00323_ Flight Unit destroyed. 00325_ Slammed into as-96590. 00325_ Knocked back. 00325_ as-52670 destroyed. 00326_ Slammed into as-57907. 00330_ System corrupted: Energy discharge (-22). 00330_ Acquired 11 matter. Map ----- +----------------------------------------------------+ | ???????????????????????????????????????? | | ???????????????????????????????????????? | | ???????????????????????????????????????? | | ???????????????????????????????????????? | | ???????????????????????????????????????? | | ???????????????????????????????????????? | | ???????????????????????????????????????? | | ???????????????????????????????????????? | | ???????????????????????????????????????? | | ???????????????????????????????????????? | | ???????????????????????????????????????? | | ???????????????????????????????????????? | | ????????????????????####???????????????? | | ???????????????????## ##??????????????? | | ??####????########## #??????????????? | | ?## #??## ## ## #??????????????? | | ?# ### #???????????????? | | ?# #???????????????? | | ?# [ % ##??????????????? | | ??# %! ## #??????????????? | | ??##### % ##### #??????????????? | | ??????# % ##???## ##??????????????? | | ??????# a#####??# #???????????????? | | ??????# aa #??# #???????????????? | | ??????## #??# #???????????????? | | ???????## ###@ #??# #???????????????? | | ????????#####?# #??# #???????????????? | | ??????????????# #??# #???????????????? | | ??????????????# #??#% #???????????????? | | ??????????????#a #??# #???????????????? | | ??????????????# a#?? #???????????????? | | ??????????????# #? #???????????????? | | ??????????????# # ####???????????????? | | ??????????????# # ???????????????????? | | ??????????????? # ???????????????????? | | ??????????????? # ????????????????????? | | ??????????????? # ????????????????????? | | ??????????????? ????????????????????? | | ??????????????? ?????????????????????? | | ??????????????? ?????????????????????? | | ??????????????? ?????????????????????? | | ???????????????????????????????????????? | | ???????????????????????????????????????? | | ???????????????????????????????????????? | | ???????????????????????????????????????? | | ???????????????????????????????????????? | | ???????????????????????????????????????? | | ???????????????????????????????????????? | | ???????????????????????????????????????? | | ???????????????????????????????????????? | +----------------------------------------------------+ Best States ------------- Heat Dissipation 28 Energy Generation 10 Energy Capacity 250 Matter Stores 300 Matter Capacity 300 Sight Range 16 Terrain Scan Density 10 Evasion (%) 63 Item Schematics ----------------- None Robot Schematics ------------------ None Fabricated ------------ Nothing Alien Tech Used ----------------- None Achievements -------------- None Challenges ------------ None Game ------ Seed SpacefoldProcessingScreen Manual? 0 Play Time 00:09:24 Cumulative 86.4 hours Start 2022.06.09 @ 01:45:34 End 2022.06.09 @ 01:54:38 Sessions 1 Manual Loads 0 Difficulty Rogue Special Mode None Game No. 137 Rogue 91 Adventurer 45 Explorer 1 Win Type - Total 0 Types 0/0/0/0/0/0/0/0/0 Lore% 27 Gallery% 47 Achievement% 34 Wizard Run 0 Options --------- ASCII 0 Keyboard 0 Movement Mouse Keybinds 0 Fullscreen 2 Font 18/X11Bold Map View 76x50 Tactical HUD 1 Map Filters NONE Filters LOW_CONTRAST(13,24,33)|BRIGHTNESS(90)|SATURATION(87) Steam 1 RUN: 757a4e97-bd0c-4f6d-82ad-88e42ffbb8c6